bitfinex/quotes_BTCUSD_20220307
["timestamp","ask_amount","ask_price","bid_price","bid_amount"]
[1646670449531,0.0011,39455.0,39444.0,1.27739197]
[1646670449730,0.0011,39455.0,39445.0,0.1]
[1646670449930,0.0011,39455.0,39446.0,0.69619]
[1646670449931,0.00061405,39452.0,39446.0,0.69619]
[1646670450131,0.00061405,39452.0,39447.0,0.759565]
[1646670450533,0.00061405,39452.0,39447.0,0.69619]
[1646670450774,0.0011,39455.0,39447.0,0.69619]
[1646670450976,0.00015354,39449.0,39447.0,0.69619]
[1646670451376,0.00015354,39449.0,39448.0,0.45957]
[1646670451977,0.55077303,39447.0,39441.0,0.426768]
[1646670452278,0.55077303,39447.0,39437.0,0.3]
[1646670452577,0.334086,39444.0,39437.0,0.3]
[1646670452777,0.334086,39444.0,39437.0,0.363398]
[1646670452978,0.16058014,39442.0,39436.0,0.00115048]
[1646670453179,0.0907638,39442.0,39436.0,0.00115048]
[1646670453376,0.09092147,39442.0,39436.0,0.00115048]
[1646670454427,0.0907638,39442.0,39436.0,0.00115048]
[1646670454629,0.00015767,39441.0,39436.0,0.00115048]
[1646670455229,0.00015767,39441.0,39436.0,0.06454948]
[1646670455430,0.00015767,39441.0,39437.0,0.69619]
[1646670455629,0.55077303,39447.0,39437.0,0.69619]
[1646670455832,0.00062546,39446.0,39442.0,0.17912298]
[1646670456230,0.00062546,39446.0,39443.0,0.53348453]
[1646670456531,0.00062546,39446.0,39443.0,0.363389]
[1646670456729,0.55077303,39447.0,39443.0,0.063389]
[1646670456929,0.55077303,39447.0,39444.0,0.39619]
[1646670457131,0.00015639,39446.0,39444.0,0.39619]
[1646670457329,0.00015639,39446.0,39445.0,0.69619]
[1646670458177,0.55077303,39447.0,39445.0,0.70886]
[1646670458382,0.55092942,39447.0,39446.0,0.87451596]
[1646670459078,0.55077303,39447.0,39446.0,0.87451596]
[1646670459478,0.55077303,39447.0,39446.0,0.91951596]
[1646670459678,0.55077303,39447.0,39446.0,1.01951596]
[1646670460482,0.55077303,39447.0,39446.0,0.85386]
[1646670460984,0.55077303,39447.0,39446.0,0.55386]
[1646670461179,0.55077303,39447.0,39446.0,0.44119]
[1646670461383,0.390516,39446.0,39445.0,0.24]
[1646670462033,0.440516,39446.0,39445.0,0.24]
[1646670462431,0.4947896,39446.0,39445.0,0.24]
[1646670462636,0.4967896,39446.0,39445.0,0.24]
[1646670462832,0.442516,39446.0,39445.0,0.24]
[1646670464035,0.390516,39446.0,39445.0,0.24]
[1646670464634,0.397516,39446.0,39445.0,0.24]
[1646670465778,0.390516,39446.0,39445.0,0.24]
[1646670468980,0.385516,39446.0,39445.0,0.24]
[1646670471642,0.55096067,39447.0,39445.0,0.24]
[1646670472040,0.56111967,39447.0,39445.0,0.24]
[1646670472441,0.56093203,39447.0,39445.0,0.24]
[1646670473876,0.55077303,39447.0,39445.0,0.24]
[1646670474078,0.385515,39446.0,39445.0,0.303386]
[1646670474277,0.55077303,39447.0,39445.0,0.303386]
[1646670474977,0.55077303,39447.0,39446.0,0.696079]
[1646670475379,0.55077303,39447.0,39446.0,0.87444011]
[1646670475577,0.55077303,39447.0,39446.0,0.87558508]
[1646670476582,0.55077303,39447.0,39446.0,0.87058508]
[1646670477428,0.55077303,39447.0,39446.0,0.69222397]
[1646670477628,0.55077303,39447.0,39446.0,0.396079]
[1646670477828,0.55077303,39447.0,39445.0,0.24]
[1646670481079,0.55277303,39447.0,39445.0,0.24]
[1646670481983,0.25237889,39443.0,39440.0,0.100158]
[1646670482180,0.385515,39442.0,39440.0,0.100158]
[1646670482581,0.2472726,39441.0,39440.0,0.100158]
[1646670482781,0.6327876,39441.0,39440.0,0.100158]
[1646670484638,0.6367876,39441.0,39440.0,0.100158]
[1646670485040,0.389515,39441.0,39440.0,0.100158]
[1646670486340,0.004,39441.0,39440.0,0.100158]
[1646670486542,0.00015294,39442.0,39440.0,0.100158]
[1646670486741,0.385515,39441.0,39440.0,0.100158]
[1646670486943,0.25237889,39443.0,39440.0,0.100158]
[1646670487140,0.38566794,39442.0,39440.0,0.100158]
[1646670487742,0.00015294,39442.0,39441.0,0.363394]
[1646670488180,0.25237889,39443.0,39441.0,0.063394]
[1646670488380,0.25253183,39443.0,39441.0,0.063394]
[1646670488782,0.25253183,39443.0,39442.0,0.7620984]
[1646670489185,0.25237889,39443.0,39442.0,1.1581774]
[1646670489585,0.25237889,39443.0,39442.0,0.7570984]
[1646670490785,0.25237889,39443.0,39442.0,0.53399648]
[1646670490988,0.25237889,39443.0,39442.0,0.93507548]
[1646670491388,0.25237889,39443.0,39442.0,1.13763759]
[1646670491937,0.25237889,39443.0,39442.0,1.18822303]
[1646670492240,0.25237889,39443.0,39442.0,1.10228773]
[1646670493336,0.25237889,39443.0,39442.0,1.15228773]
[1646670494037,0.25237889,39443.0,39442.0,1.39093643]
[1646670494237,0.25237889,39443.0,39442.0,2.19408398]
[1646670494439,0.25237889,39443.0,39442.0,1.98763643]
[1646670495037,0.00015647,39444.0,39443.0,1.946079]
[1646670495237,0.55277303,39447.0,39445.0,0.396079]
[1646670495437,0.55277303,39447.0,39446.0,1.44612125]
[1646670495685,0.55277303,39447.0,39446.0,1.78892081]
[1646670495883,0.55277303,39447.0,39446.0,1.27565525]
[1646670496184,0.55277303,39447.0,39446.0,1.72565525]
[1646670496886,0.00018832,39454.0,39450.0,0.25]
[1646670497086,0.0011,39458.0,39455.0,0.27532]
[1646670497285,0.0011,39458.0,39457.0,0.721399]
[1646670497489,0.0011,39458.0,39457.0,0.97061942]
[1646670497685,0.0011,39458.0,39457.0,0.918099]
[1646670497885,0.0011,39460.0,39458.0,0.649448]
[1646670498086,0.0011,39460.0,39459.0,0.742779]
[1646670498287,0.0011,39460.0,39459.0,0.792779]
[1646670499289,0.0011,39460.0,39459.0,3.07993918]
[1646670499548,0.0011,39460.0,39459.0,0.792779]
[1646670499950,0.0033,39466.0,39459.0,0.792779]
[1646670499951,0.0022,39473.0,39461.0,2.163345]
[1646670500155,0.0022,39473.0,39463.0,1.12510421]
[1646670500349,0.0022,39473.0,39470.0,0.35]
[1646670500551,0.0022,39473.0,39470.0,0.1467]
[1646670500751,0.0022,39473.0,39470.0,0.0467]
[1646670500949,0.2948289,39471.0,39470.0,0.0467]
[1646670501151,0.6803439,39471.0,39469.0,0.0467]
[1646670501350,0.6803439,39471.0,39466.0,0.063354]
[1646670501351,0.0022,39471.0,39466.0,0.063354]
[1646670501549,0.0022,39471.0,39467.0,0.363351]
[1646670501949,0.065554,39471.0,39467.0,0.363351]
[1646670502350,0.126707,39470.0,39467.0,0.3]
[1646670502550,0.126707,39470.0,39466.0,0.26062717]
[1646670502754,0.06574078,39471.0,39466.0,0.26062717]
[1646670503190,0.06574078,39471.0,39467.0,0.3]
[1646670503385,0.06335,39470.0,39467.0,0.06335]
[1646670503585,0.00128678,39471.0,39468.0,0.396079]
[1646670503790,0.012352,39472.0,39470.0,0.25]
[1646670503791,0.00110678,39472.0,39470.0,0.25]
[1646670503985,0.00110678,39472.0,39471.0,0.696079]
[1646670504183,0.00110678,39472.0,39471.0,0.796079]
[1646670504384,0.00110678,39472.0,39471.0,0.55]
[1646670504584,0.00110678,39472.0,39471.0,1.1145691]
[1646670504786,0.00110678,39472.0,39471.0,0.55]
[1646670505186,0.00110678,39472.0,39471.0,0.15]
[1646670505587,0.00110678,39472.0,39471.0,0.05]
[1646670505786,0.00110678,39472.0,39469.0,0.05]
[1646670505986,0.00110678,39472.0,39468.0,0.0467]
[1646670506187,0.385515,39471.0,39467.0,0.0010509]
[1646670506490,0.435515,39471.0,39467.0,0.0010509]
[1646670507147,0.385515,39469.0,39467.0,0.0010509]
[1646670507345,0.27202629,39470.0,39467.0,0.0010509]
[1646670507547,0.060153,39471.0,39467.0,0.0010509]
[1646670507548,0.05,39471.0,39467.0,0.0010509]
[1646670507949,0.06546178,39472.0,39469.0,0.063352]
[1646670507950,0.11546178,39472.0,39469.0,0.063352]
[1646670508145,0.06546178,39472.0,39469.0,0.063352]
[1646670508345,0.05,39471.0,39469.0,0.063352]
[1646670508545,0.06546178,39472.0,39469.0,0.063352]
[1646670508546,0.00210678,39472.0,39469.0,0.063352]
[1646670508945,0.00210678,39472.0,39470.0,0.396079]
[1646670509145,0.00210678,39472.0,39469.0,0.4267]
[1646670510347,0.00210678,39472.0,39469.0,0.1267]
[1646670510553,0.385515,39471.0,39469.0,0.063352]
[1646670510802,0.435515,39471.0,39468.0,0.00105097]
[1646670511398,0.385515,39469.0,39468.0,0.00105097]
[1646670511996,9.85e-05,39463.0,39460.0,0.3]
[1646670512196,9.85e-05,39463.0,39458.0,0.3]
[1646670512197,0.25264848,39461.0,39458.0,0.3]
[1646670512397,0.25264848,39461.0,39455.0,0.063376]
[1646670512596,0.25264848,39461.0,39455.0,0.065376]
[1646670512796,0.25264848,39461.0,39455.0,0.002]
[1646670512996,0.385515,39460.0,39455.0,0.002]
[1646670513199,0.126753,39459.0,39455.0,0.002]
[1646670513396,0.385515,39458.0,39455.0,0.002]
[1646670513995,0.385515,39458.0,39453.0,0.126746]
[1646670514197,0.05,39458.0,39453.0,0.126746]
[1646670514437,0.113373,39458.0,39455.0,0.063376]
[1646670515132,0.010156,39460.0,39458.0,0.10399851]
[1646670515335,0.18927748,39461.0,39458.0,0.23072351]
[1646670515533,0.385515,39460.0,39458.0,0.23072351]
[1646670515737,0.385515,39460.0,39458.0,0.10399851]
[1646670516333,0.61430615,39459.0,39458.0,0.10399851]
[1646670517834,0.66430615,39459.0,39458.0,0.10399851]
[1646670518036,0.81430615,39459.0,39458.0,0.10399851]
[1646670518291,0.682215,39459.0,39447.0,0.61341453]
[1646670518485,0.682215,39459.0,39442.0,0.22026886]
[1646670518486,0.213396,39448.0,39442.0,0.22026886]
[1646670518688,0.2074816,39443.0,39441.0,0.00033867]
[1646670518883,0.15,39445.0,39441.0,0.00033867]
[1646670518884,0.432215,39442.0,39441.0,0.00033867]
[1646670519085,0.385515,39442.0,39441.0,0.00033867]
[1646670519282,0.385515,39442.0,39440.0,0.100158]
[1646670519483,0.385515,39442.0,39440.0,0.1004996]
[1646670520583,0.385515,39442.0,39440.0,0.100158]
[1646670521187,0.435515,39442.0,39440.0,0.100158]
[1646670521386,0.435515,39442.0,39440.0,0.226954]
[1646670521587,0.435515,39442.0,39440.0,0.100158]
[1646670522838,0.445676,39442.0,39440.0,0.100158]
[1646670523238,0.385515,39442.0,39440.0,0.100158]
[1646670523442,0.65633506,39442.0,39440.0,0.100158]
[1646670524539,0.70633506,39442.0,39440.0,0.100158]
[1646670524740,0.435515,39442.0,39440.0,0.100158]
[1646670525689,0.435515,39442.0,39440.0,0.10116919]
[1646670526692,0.445676,39442.0,39440.0,0.10116919]
[1646670526891,0.395676,39442.0,39440.0,0.10116919]
[1646670527091,0.385515,39441.0,39440.0,0.10116919]
[1646670529092,0.635315,39441.0,39440.0,0.10116919]
[1646670529438,0.635315,39441.0,39439.0,0.00034075]
[1646670529641,2.087415,39440.0,39439.0,0.00034075]
[1646670529841,2.234115,39440.0,39439.0,0.00034075]
[1646670530043,1.55,39439.0,39425.0,0.35956619]
[1646670530240,1.55,39439.0,39426.0,0.3]
[1646670530241,0.126855,39433.0,39426.0,0.3]
[1646670530440,0.385515,39432.0,39426.0,0.3]
[1646670530838,0.385515,39432.0,39426.0,0.58902952]
[1646670530839,0.448943,39432.0,39426.0,0.58902952]
[1646670531241,0.448943,39432.0,39426.0,0.60170952]
[1646670531438,0.263228,39432.0,39426.0,0.60170952]
[1646670531638,0.385515,39431.0,39426.0,0.60170952]
[1646670531839,0.05,39431.0,39426.0,0.60170952]
[1646670532039,0.263228,39432.0,39427.0,0.396079]
[1646670532240,0.313228,39432.0,39429.0,0.459487]
[1646670532440,0.313228,39432.0,39430.0,0.86226183]
[1646670532647,0.126808,39438.0,39432.0,0.63666649]
[1646670532841,0.326608,39438.0,39433.0,0.708749]
[1646670533043,0.1998,39438.0,39433.0,0.758749]
[1646670533487,0.5,39441.0,39433.0,0.822148]
[1646670533791,0.063399,39439.0,39438.0,0.24612224]
[1646670534086,0.063399,39439.0,39438.0,0.64220124]
[1646670534287,0.063399,39439.0,39438.0,0.94220124]
[1646670534487,0.063399,39439.0,39438.0,0.64220124]
[1646670534686,0.063399,39439.0,39438.0,0.94220124]
[1646670535086,0.063392,39441.0,39438.0,0.94220124]
[1646670535289,0.5,39446.0,39445.0,0.12402503]
[1646670535488,0.20215413,39449.0,39445.0,0.88248403]
[1646670535690,0.20215413,39449.0,39446.0,0.696079]
[1646670535888,0.20215413,39449.0,39446.0,0.3]
[1646670536087,0.20215413,39449.0,39446.0,0.19160176]
[1646670536291,0.20215413,39449.0,39446.0,0.16865705]
[1646670536491,0.20215413,39449.0,39447.0,0.063379]
[1646670536690,0.25215413,39449.0,39447.0,0.063379]
[1646670536933,0.31553513,39449.0,39447.0,0.063379]
[1646670537834,0.31553513,39449.0,39446.0,0.063379]
[1646670538034,0.385515,39448.0,39446.0,0.063379]
[1646670538236,0.385515,39447.0,39445.0,0.31316203]
[1646670538434,0.31553513,39449.0,39445.0,0.31265477]
[1646670539033,0.31553513,39449.0,39446.0,0.01267]
[1646670539234,0.31553513,39449.0,39446.0,0.01109693]
[1646670539433,0.385515,39448.0,39446.0,0.01027801]
[1646670540034,0.385515,39448.0,39445.0,0.18640503]
[1646670540236,0.38298009,39448.0,39445.0,0.18557069]
[1646670540438,0.582781,39446.0,39445.0,0.18475447]
[1646670540704,0.582781,39446.0,39438.0,0.01267]
[1646670540705,0.25557804,39439.0,39438.0,0.01267]
[1646670540905,0.8181544,39439.0,39438.0,0.01267]
[1646670541304,0.382981,39438.0,39435.0,0.01135505]
[1646670541705,0.382981,39438.0,39433.0,0.01267]
[1646670541905,0.433781,39438.0,39433.0,0.01267]
[1646670542104,0.433781,39438.0,39433.0,0.04587812]
[1646670542105,0.0508,39438.0,39433.0,0.04587812]
[1646670542305,0.0508,39438.0,39433.0,0.04510072]
[1646670542506,0.0508,39438.0,39433.0,0.04430934]
[1646670543706,0.15,39437.0,39434.0,0.00028557]
[1646670543905,0.15,39437.0,39433.0,0.04430934]
[1646670543906,1.55,39435.0,39433.0,0.04430934]
[1646670544109,0.0508,39434.0,39433.0,0.04430934]
[1646670544307,0.0508,39434.0,39414.0,0.25320936]
[1646670544308,1.55,39432.0,39414.0,0.25320936]
[1646670544554,0.18399099,39420.0,39414.0,0.17026098]
[1646670544846,0.05,39423.0,39413.0,0.40624679]
[1646670545046,0.05,39423.0,39410.0,0.26588936]
[1646670545047,0.063444,39421.0,39410.0,0.26588936]
[1646670545345,0.2499,39422.0,39410.0,0.01268]
[1646670545547,0.3007,39422.0,39409.0,0.01268]
[1646670545744,0.3007,39422.0,39409.0,0.17462971]
[1646670545943,0.17461387,39418.0,39409.0,0.17462971]
[1646670546147,0.17461387,39418.0,39409.0,0.4635641]
[1646670546545,0.23806587,39418.0,39411.0,0.063452]
[1646670547346,0.53806587,39418.0,39413.0,0.00036529]
[1646670547646,0.0508,39417.0,39413.0,0.00036529]
[1646670547848,0.19661472,39414.0,39413.0,0.00036529]
[1646670548045,0.24661472,39414.0,39413.0,0.00036529]
[1646670548282,0.24661472,39414.0,39408.0,0.126895]
[1646670548589,0.15865942,39409.0,39406.0,0.05]
[1646670548784,1.55,39408.0,39403.0,0.001]
[1646670549187,0.05,39407.0,39403.0,0.001]
[1646670549386,0.1008,39407.0,39403.0,0.001]
[1646670549783,0.1008,39407.0,39404.0,0.00036536]
[1646670550582,0.063464,39406.0,39404.0,0.00036536]
[1646670550783,0.063464,39406.0,39402.0,0.18072913]
[1646670550982,0.063464,39406.0,39404.0,0.00036536]
[1646670551287,0.05,39407.0,39404.0,0.00036536]
[1646670551682,0.05,39409.0,39404.0,0.00036536]
[1646670551944,0.5508,39410.0,39405.0,0.596162]
[1646670552139,0.5508,39410.0,39409.0,0.2214906]
[1646670552741,0.5508,39410.0,39409.0,0.2849336]
[1646670552742,0.0508,39410.0,39409.0,0.2849336]
[1646670553142,0.626895,39419.0,39409.0,0.2849336]
[1646670553143,0.626895,39419.0,39409.0,0.2214906]
[1646670553344,0.5,39419.0,39410.0,0.21657094]
[1646670553544,0.5,39419.0,39414.0,0.21595498]
[1646670553743,0.5,39419.0,39415.0,0.063435]
[1646670553942,0.5,39419.0,39416.0,0.25666832]
[1646670554346,0.063434,39419.0,39415.0,0.063435]
[1646670554546,0.063434,39419.0,39416.0,0.00034193]
[1646670555549,0.063434,39419.0,39415.0,0.063435]
[1646670555788,0.063434,39419.0,39416.0,0.00033017]
[1646670556788,0.063434,39419.0,39414.0,0.01268]
[1646670556986,0.259934,39419.0,39416.0,0.00033017]
[1646670557787,0.063434,39419.0,39416.0,0.00033017]
[1646670558088,0.063434,39419.0,39408.0,0.12689]
[1646670558287,0.3,39418.0,39416.0,0.00033017]
[1646670558492,0.1965,39417.0,39416.0,0.00033017]
[1646670558687,0.2465,39417.0,39416.0,0.00033017]
[1646670559289,0.05,39416.0,39412.0,0.126879]
[1646670559541,0.05,39416.0,39415.0,0.00033372]
[1646670559743,0.809934,39419.0,39415.0,0.00033372]
[1646670559942,0.126879,39417.0,39415.0,0.00033372]
[1646670560339,0.126879,39417.0,39414.0,0.19828765]
[1646670560738,0.126879,39417.0,39414.0,0.19862137]
[1646670560939,0.126879,39417.0,39414.0,0.00033372]
[1646670561542,0.126879,39417.0,39413.0,0.063445]
[1646670561741,0.126879,39417.0,39414.0,0.00033372]
[1646670562139,0.137046,39417.0,39414.0,0.00033372]
[1646670562540,0.126879,39417.0,39414.0,0.00033372]
[1646670562839,0.126879,39417.0,39412.0,0.126879]
[1646670563040,0.18269611,39415.0,39414.0,0.00033315]
[1646670563904,0.18269611,39415.0,39411.0,0.063446]
[1646670564107,0.18269611,39415.0,39413.0,0.00033315]
[1646670565105,0.18269611,39415.0,39410.0,0.06268]
[1646670565406,0.29615111,39415.0,39412.0,0.00033316]
[1646670566007,0.50281911,39415.0,39412.0,0.00033316]
[1646670566506,0.49265111,39415.0,39412.0,0.00033326]
[1646670566705,0.309955,39415.0,39412.0,0.00033326]
[1646670566943,0.113455,39415.0,39412.0,0.00033326]
[1646670567346,0.1965,39413.0,39412.0,0.00033326]
[1646670567550,0.1965,39413.0,39407.0,0.06346]
[1646670567849,0.18829739,39410.0,39407.0,0.06346]
[1646670568347,0.18829739,39410.0,39404.0,0.126897]
[1646670568946,0.18829739,39410.0,39405.0,0.00033331]
[1646670569751,0.16385439,39410.0,39405.0,0.00033331]
[1646670569947,0.36035439,39410.0,39405.0,0.17486962]
[1646670570152,0.16385439,39410.0,39406.0,0.00033354]
[1646670570548,0.16385439,39410.0,39406.0,2.43557903]
[1646670570991,0.16385439,39410.0,39406.0,0.00033354]
[1646670571193,0.16385439,39410.0,39404.0,0.126897]
[1646670571392,0.16385439,39410.0,39406.0,0.00033353]
[1646670572194,0.063461,39411.0,39409.0,0.18889768]
[1646670572494,0.5,39414.0,39409.0,0.126883]
[1646670573494,0.5,39414.0,39411.0,0.19265217]
[1646670573693,0.5,39414.0,39411.0,0.31953517]
[1646670573894,0.510168,39414.0,39411.0,0.31953517]
[1646670574095,0.010168,39414.0,39411.0,0.31953517]
[1646670574836,0.060168,39414.0,39411.0,0.31953517]
[1646670575037,0.060168,39414.0,39411.0,0.12721624]
[1646670575241,0.060168,39414.0,39411.0,0.00033324]
[1646670575440,0.187081,39414.0,39411.0,0.00033324]
[1646670575640,0.4965,39413.0,39411.0,0.00033324]
[1646670575841,0.06348,39410.0,39398.0,0.2475]
[1646670576039,0.06348,39410.0,39399.0,0.2179454]
[1646670576241,0.19834606,39405.0,39397.0,0.18856794]
[1646670576440,0.126937,39405.0,39399.0,0.063469]
[1646670576640,0.126937,39405.0,39404.0,0.25478218]
[1646670577143,0.11424331,39405.0,39403.0,0.21402992]
[1646670577343,0.063464,39406.0,39403.0,0.21402992]
[1646670577644,0.5,39410.0,39405.0,0.126873]
[1646670577845,0.5,39410.0,39406.0,0.846162]
[1646670578042,0.5,39410.0,39406.0,0.4967]
[1646670578295,0.010168,39414.0,39409.0,0.22076081]
[1646670578496,0.010168,39414.0,39409.0,0.28420281]
[1646670578695,0.010168,39414.0,39410.0,0.24810198]
[1646670578896,0.010168,39414.0,39409.0,0.063442]
[1646670579296,0.010168,39414.0,39409.0,0.113442]
[1646670579896,0.010168,39414.0,39409.0,0.11377551]
[1646670580796,0.010168,39414.0,39409.0,0.113442]
[1646670580997,0.010168,39414.0,39409.0,0.1137745]
[1646670582138,0.010168,39414.0,39409.0,0.113442]
[1646670582338,0.010168,39414.0,39409.0,0.1137745]
[1646670583339,0.010168,39414.0,39409.0,0.113442]
[1646670583538,0.010168,39414.0,39409.0,0.1137745]
[1646670583740,0.010168,39414.0,39409.0,0.0503325]
[1646670584140,0.010168,39414.0,39409.0,0.0003325]
[1646670584141,0.310168,39414.0,39409.0,0.0003325]
[1646670584541,0.310168,39414.0,39400.0,0.35468688]
[1646670584740,0.17795996,39404.0,39399.0,0.71210786]
[1646670584939,0.17795996,39404.0,39399.0,0.35742098]
[1646670584940,0.24142796,39404.0,39399.0,0.35742098]
[1646670585342,0.063468,39404.0,39399.0,0.35742098]
[1646670585797,0.063468,39404.0,39399.0,0.40742098]
[1646670586003,0.063468,39404.0,39400.0,0.00035102]
[1646670586596,0.063468,39404.0,39400.0,0.12727302]
[1646670586797,0.063468,39404.0,39401.0,0.05]
[1646670586999,0.063468,39404.0,39400.0,0.12727302]
[1646670587000,0.063468,39404.0,39400.0,0.126922]
[1646670587200,0.05712121,39404.0,39400.0,0.12727302]
[1646670587600,0.05712121,39404.0,39403.0,0.17752152]
[1646670587798,0.05712121,39404.0,39400.0,0.12727302]
[1646670588000,0.05,39414.0,39402.0,2.55309143]
[1646670588202,0.5,39413.0,39405.0,0.20696487]
[1646670588600,0.05,39411.0,39405.0,0.20696487]
[1646670588799,0.05,39411.0,39407.0,0.2080519]
[1646670589546,0.05,39411.0,39407.0,0.20838248]
[1646670589748,0.5,39413.0,39407.0,0.20838248]
[1646670589948,0.5,39413.0,39407.0,0.27182548]
[1646670590151,0.5,39413.0,39408.0,0.076123]
[1646670590549,0.5,39416.0,39408.0,0.076123]
[1646670590752,0.5,39416.0,39409.0,0.00033057]
[1646670590948,0.5,39416.0,39409.0,0.06377157]
[1646670591349,0.5,39416.0,39415.0,0.15763493]
[1646670591549,0.563437,39419.0,39411.0,0.20676716]
[1646670591751,0.5,39419.0,39411.0,0.20676716]
[1646670592449,0.40861176,39418.0,39409.0,0.00033286]
[1646670592648,0.40861176,39418.0,39414.0,0.1725418]
[1646670593295,0.21211176,39418.0,39414.0,0.1725418]
[1646670594395,0.063439,39419.0,39414.0,0.1725418]
[1646670594994,0.1965,39418.0,39414.0,0.1725418]
[1646670595195,0.1683243,39417.0,39413.0,0.06344]
[1646670595396,0.1683243,39417.0,39412.0,0.139559]
[1646670595594,0.1683243,39417.0,39409.0,0.00233929]
[1646670595797,0.1965,39414.0,39409.0,0.00233929]
[1646670595995,0.1965,39413.0,39409.0,0.00233929]
[1646670596194,0.06935491,39411.0,39409.0,0.00033929]
[1646670596396,0.20633298,39410.0,39409.0,0.00033929]
[1646670596697,0.1965,39409.0,39407.0,0.063458]
[1646670596962,0.1965,39409.0,39408.0,0.0003393]
[1646670597662,0.259955,39409.0,39408.0,0.0003393]
[1646670597863,0.259955,39409.0,39407.0,0.063458]
[1646670598062,0.259955,39409.0,39407.0,0.06379731]
[1646670598466,0.126909,39414.0,39407.0,0.06379731]
[1646670598968,0.06345,39411.0,39407.0,0.063458]
[1646670599564,0.06345,39411.0,39404.0,0.126909]
[1646670600166,0.073619,39411.0,39406.0,0.20779423]
[1646670600367,0.073619,39411.0,39406.0,0.20813873]
[1646670600690,0.24837685,39414.0,39406.0,0.0003445]
[1646670601293,0.24837685,39414.0,39407.0,0.063452]
[1646670601491,0.24837685,39414.0,39408.0,0.00034448]
[1646670601692,0.063454,39413.0,39408.0,0.00034448]
[1646670601891,0.058454,39413.0,39408.0,0.00034448]
[1646670602092,0.058454,39413.0,39408.0,0.12725448]
[1646670602295,0.30284749,39410.0,39408.0,0.00034448]
[1646670602494,0.30284749,39410.0,39398.0,0.34465044]
[1646670602695,0.063471,39406.0,39400.0,0.063471]
[1646670603093,0.063471,39406.0,39400.0,0.26643551]
[1646670603492,0.063471,39406.0,39402.0,0.21400379]
[1646670603700,0.5,39414.0,39404.0,0.396162]
[1646670603896,0.5,39414.0,39407.0,0.396162]
[1646670604094,0.010168,39413.0,39409.0,0.12687802]
[1646670604451,0.2283,39421.0,39417.0,0.25883955]
[1646670604752,1.58061185,39426.0,39419.0,0.396162]
[1646670604753,0.01268,39426.0,39419.0,0.396162]
[1646670605051,2.18172092,39431.0,39420.0,0.3]
[1646670605255,0.5,39428.0,39420.0,0.3]
[1646670605449,0.5,39428.0,39420.0,0.3467]
[1646670605650,0.5,39428.0,39423.0,0.22882414]
[1646670605849,0.5,39428.0,39421.0,0.3]
[1646670606252,0.5,39428.0,39425.0,0.12685]
[1646670606450,0.5,39428.0,39426.0,0.3]
[1646670606653,0.5,39428.0,39427.0,0.396162]
[1646670606852,0.00063291,39433.0,39428.0,0.27532]
[1646670607056,0.00063291,39433.0,39432.0,0.45]
[1646670607252,0.00063291,39433.0,39432.0,1.146162]
[1646670607552,0.5,39436.0,39432.0,1.96772922]
[1646670607752,0.010161,39439.0,39438.0,0.72220341]
[1646670607954,0.05,39442.0,39438.0,0.49285128]
[1646670607955,0.00063292,39440.0,39438.0,0.49285128]
[1646670608214,0.00063292,39440.0,39439.0,0.596162]
[1646670608409,0.00063292,39440.0,39438.0,0.3]
[1646670608813,0.25707558,39441.0,39437.0,0.0467]
[1646670609011,0.118437,39440.0,39433.0,0.75]
[1646670609210,0.03007518,39438.0,39437.0,0.190178]
[1646670609410,0.14851218,39438.0,39437.0,0.190178]
[1646670610011,0.14851218,39438.0,39433.0,0.12683]
[1646670610012,0.21192618,39438.0,39433.0,0.12683]
[1646670610209,0.118437,39437.0,39428.0,0.0467]
[1646670610414,0.118437,39437.0,39425.0,0.25317924]
[1646670610415,0.118437,39436.0,39425.0,0.00317924]
[1646670610612,0.168437,39436.0,39425.0,0.00317924]
[1646670610810,0.1999,39431.0,39425.0,0.00317924]
[1646670611011,0.30054471,39430.0,39426.0,0.26358556]
[1646670611211,0.063428,39430.0,39426.0,0.26358556]
[1646670611417,0.1999,39431.0,39426.0,0.26358556]
[1646670611612,0.150063,39431.0,39427.0,0.3]
[1646670612040,0.00015862,39436.0,39428.0,0.37886385]
[1646670612241,0.03070962,39438.0,39428.0,0.30570385]
[1646670612242,0.24029619,39432.0,39428.0,0.30570385]
[1646670612441,0.24029619,39432.0,39428.0,0.12684]
[1646670612842,0.118437,39431.0,39428.0,0.12684]
[1646670613642,0.07415011,39430.0,39425.0,0.00317924]
[1646670613842,0.118437,39429.0,39425.0,0.00317924]
[1646670614045,0.168437,39429.0,39425.0,0.00317924]
[1646670614242,0.063452,39428.0,39425.0,0.00317924]
[1646670614441,0.03007518,39426.0,39425.0,0.00317924]
[1646670614641,0.19931218,39426.0,39425.0,0.00317924]
[1646670617296,0.19931218,39426.0,39413.0,0.20189429]
[1646670617297,0.70121218,39426.0,39409.0,0.00034335]
[1646670617497,0.06346,39419.0,39409.0,0.00034335]
[1646670617696,0.169237,39418.0,39409.0,0.00034335]
[1646670618094,0.219237,39418.0,39409.0,0.12725335]
[1646670618294,0.27633428,39410.0,39409.0,0.12691]
[1646670618497,0.27633428,39410.0,39409.0,0.12725333]
[1646670618796,0.27633428,39410.0,39409.0,0.00034333]
[1646670619542,0.27633428,39410.0,39408.0,0.06346]
[1646670619744,0.14851218,39409.0,39408.0,0.06380334]
[1646670620745,0.14851218,39409.0,39408.0,0.06346]
[1646670621045,0.21197918,39409.0,39407.0,0.00034486]
[1646670621450,0.0508,39408.0,39407.0,0.00034486]
[1646670621649,0.169237,39408.0,39407.0,0.00034486]
[1646670622048,0.169237,39408.0,39404.0,0.06347]
[1646670622249,0.169237,39408.0,39406.0,0.00034487]
[1646670623291,0.169237,39408.0,39406.0,0.126922]
[1646670624292,0.164237,39408.0,39406.0,0.126922]
[1646670624494,0.03107518,39409.0,39407.0,0.3]
[1646670624695,0.03107518,39409.0,39408.0,0.396129]
[1646670624892,0.5,39414.0,39408.0,1.13151732]
[1646670625090,0.4557,39425.0,39408.0,1.13151732]
[1646670625091,0.5,39424.0,39408.0,1.13151732]
[1646670625293,0.5722306,39424.0,39413.0,0.063435]